fUSD/lending_fUSD_20260601
["ID","MTS","AMOUNT","RATE_DAILY","PERIOD"]
[423638441,1780270242000,-500.0,0.00013698,2]
[423638440,1780270242000,-500.0,0.00013698,2]
[423638439,1780270242000,-1989.11,0.00013698,2]
[423638437,1780270242000,-1989.08,0.00013698,2]
[423638429,1780270242000,-1989.08,0.00013698,2]
[423638431,1780270242000,-1989.08,0.00013698,2]
[423638433,1780270242000,-1989.08,0.00013698,2]
[423638428,1780270242000,-500.0,0.00013698,2]
[423638426,1780270242000,-1989.08,0.00013698,2]
[423638438,1780270242000,-500.0,0.00013698,2]
[423638427,1780270242000,-500.0,0.00013698,2]
[423638434,1780270242000,-500.0,0.00013698,2]
[423638451,1780270242000,-500.0,0.00013698,2]
[423638447,1780270242000,-216.73250781,0.00013698,2]
[423638444,1780270242000,-500.0,0.00013698,2]
[423638443,1780270242000,-500.0,0.00013698,2]
[423638445,1780270242000,-500.0,0.00013698,2]
[423638448,1780270242000,-500.0,0.00013698,2]
[423638449,1780270242000,-500.0,0.00013698,2]
[423638450,1780270242000,-500.0,0.00013698,2]
[423638453,1780270242000,-500.0,0.00013698,2]
[423638452,1780270242000,-500.0,0.00013698,2]
[423638460,1780270242000,-500.0,0.00013698,2]
[423638457,1780270242000,-500.0,0.00013698,2]
[423638456,1780270242000,-500.0,0.00013698,2]
[423638458,1780270242000,-500.0,0.00013698,2]
[423638430,1780270242000,-500.0,0.00013698,2]
[423638446,1780270242000,-500.0,0.00013698,2]
[423638432,1780270242000,-500.0,0.00013698,2]
[423638408,1780270242000,-1989.08,0.00013698,2]
[423638435,1780270242000,-1989.08,0.00013698,2]
[423638454,1780270242000,-500.0,0.00013698,2]
[423638398,1780270242000,-500.0,0.00013698,2]
[423638399,1780270242000,-500.0,0.00013698,2]
[423638397,1780270242000,-500.0,0.00013698,2]
[423638400,1780270242000,-500.0,0.00013698,2]
[423638403,1780270242000,-500.0,0.00013698,2]
[423638404,1780270242000,-500.0,0.00013698,2]
[423638406,1780270242000,-500.0,0.00013698,2]
[423638411,1780270242000,-1989.08,0.00013698,2]
[423638405,1780270242000,-161.8469673,0.00013698,2]
[423638401,1780270242000,-500.0,0.00013698,2]
[423638402,1780270242000,-500.0,0.00013698,2]
[423638407,1780270242000,-501.20372086,0.00013698,2]
[423638409,1780270242000,-1989.08,0.00013698,2]
[423638410,1780270242000,-1989.08,0.00013698,2]
[423638412,1780270242000,-1989.08,0.00013698,2]
[423638414,1780270242000,-1989.08,0.00013698,2]
[423638415,1780270242000,-1989.08,0.00013698,2]
[423638420,1780270242000,-1989.08,0.00013698,2]
[423638416,1780270242000,-1989.08,0.00013698,2]
[423638418,1780270242000,-1989.08,0.00013698,2]
[423638417,1780270242000,-1989.08,0.00013698,2]
[423638422,1780270242000,-1989.08,0.00013698,2]
[423638413,1780270242000,-1989.08,0.00013698,2]
[423638423,1780270242000,-1989.08,0.00013698,2]
[423638419,1780270242000,-1989.08,0.00013698,2]
[423638421,1780270242000,-1989.08,0.00013698,2]
[423638425,1780270242000,-500.0,0.00013698,2]
[423638436,1780270242000,-500.0,0.00013698,2]
[423638424,1780270242000,-1989.08,0.00013698,2]
[423638459,1780270242000,-500.0,0.00013698,2]
[423638455,1780270242000,-500.0,0.00013698,2]
[423638525,1780270242000,-500.0,0.00013698,2]
[423638497,1780270242000,-571.63,0.00013698,2]
[423638503,1780270242000,-571.63,0.00013698,2]
[423638502,1780270242000,-571.63,0.00013698,2]
[423638499,1780270242000,-571.63,0.00013698,2]
[423638496,1780270242000,-571.63,0.00013698,2]
[423638495,1780270242000,-571.63,0.00013698,2]
[423638501,1780270242000,-571.63,0.00013698,2]
[423638493,1780270242000,-571.63,0.00013698,2]
[423638505,1780270242000,-500.0,0.00013698,2]
[423638504,1780270242000,-571.79,0.00013698,2]
[423638506,1780270242000,-500.0,0.00013698,2]
[423638513,1780270242000,-500.0,0.00013698,2]
[423638514,1780270242000,-500.0,0.00013698,2]
[423638516,1780270242000,-500.0,0.00013698,2]
[423638515,1780270242000,-500.0,0.00013698,2]
[423638517,1780270242000,-500.0,0.00013698,2]
[423638507,1780270242000,-500.0,0.00013698,2]
[423638511,1780270242000,-500.0,0.00013698,2]
[423638508,1780270242000,-500.0,0.00013698,2]
[423638509,1780270242000,-500.0,0.00013698,2]
[423638510,1780270242000,-500.0,0.00013698,2]
[423638521,1780270242000,-245.62717302,0.00013698,2]
[423638520,1780270242000,-500.0,0.00013698,2]
[423638518,1780270242000,-500.0,0.00013698,2]
[423638522,1780270242000,-500.0,0.00013698,2]
[423638519,1780270242000,-500.0,0.00013698,2]
[423638523,1780270242000,-500.0,0.00013698,2]
[423638524,1780270242000,-500.0,0.00013698,2]
[423638461,1780270242000,-436.21958605,0.00013698,2]
[423638498,1780270242000,-571.63,0.00013698,2]
[423638494,1780270242000,-571.63,0.00013698,2]
[423638512,1780270242000,-500.0,0.00013698,2]
[423638500,1780270242000,-571.63,0.00013698,2]
[423638462,1780270242000,-500.0,0.00013698,2]
[423638464,1780270242000,-500.0,0.00013698,2]
[423638492,1780270242000,-571.63,0.00013698,2]
[423638466,1780270242000,-500.0,0.00013698,2]
[423638467,1780270242000,-500.0,0.00013698,2]
[423638469,1780270242000,-500.0,0.00013698,2]
[423638465,1780270242000,-500.0,0.00013698,2]
[423638476,1780270242000,-500.0,0.00013698,2]
[423638477,1780270242000,-500.0,0.00013698,2]
[423638475,1780270242000,-500.0,0.00013698,2]
[423638474,1780270242000,-500.0,0.00013698,2]
[423638470,1780270242000,-500.0,0.00013698,2]
[423638472,1780270242000,-500.0,0.00013698,2]
[423638471,1780270242000,-500.0,0.00013698,2]
[423638473,1780270242000,-500.0,0.00013698,2]
[423638463,1780270242000,-500.0,0.00013698,2]
[423638478,1780270242000,-500.0,0.00013698,2]
[423638468,1780270242000,-500.0,0.00013698,2]
[423638483,1780270242000,-571.63,0.00013698,2]
[423638487,1780270242000,-571.63,0.00013698,2]
[423638481,1780270242000,-571.63,0.00013698,2]
[423638489,1780270242000,-571.63,0.00013698,2]
[423638484,1780270242000,-571.63,0.00013698,2]
[423638486,1780270242000,-571.63,0.00013698,2]
[423638485,1780270242000,-571.63,0.00013698,2]
[423638488,1780270242000,-571.63,0.00013698,2]
[423638491,1780270242000,-571.63,0.00013698,2]
[423638480,1780270242000,-202.78843615,0.00013698,2]
[423638479,1780270242000,-186.64364503,0.00013698,2]
[423638482,1780270242000,-571.63,0.00013698,2]
[423638490,1780270242000,-571.63,0.00013698,2]
[423638570,1780270243000,-500.0,0.00013698,2]
[423638567,1780270243000,-500.0,0.00013698,2]
[423638566,1780270243000,-500.0,0.00013698,2]
[423638564,1780270243000,-500.0,0.00013698,2]
[423638561,1780270243000,-500.0,0.00013698,2]
[423638565,1780270243000,-500.0,0.00013698,2]
[423638560,1780270243000,-500.0,0.00013698,2]
[423638559,1780270243000,-500.0,0.00013698,2]
[423638553,1780270243000,-500.0,0.00013698,2]
[423638574,1780270243000,-500.0,0.00013698,2]
[423638562,1780270243000,-500.0,0.00013698,2]
[423638563,1780270243000,-500.0,0.00013698,2]
[423638568,1780270243000,-500.0,0.00013698,2]
[423638580,1780270243000,-500.0,0.00013698,2]
[423638576,1780270243000,-500.0,0.00013698,2]
[423638578,1780270243000,-500.0,0.00013698,2]
[423638575,1780270243000,-500.0,0.00013698,2]
[423638577,1780270243000,-196.77646155,0.00013698,2]
[423638579,1780270243000,-500.0,0.00013698,2]
[423638581,1780270243000,-500.0,0.00013698,2]
[423638593,1780270243000,-500.0,0.00013698,2]
[423638595,1780270243000,-500.0,0.00013698,2]
[423638592,1780270243000,-500.0,0.00013698,2]
[423638582,1780270243000,-500.0,0.00013698,2]
[423638590,1780270243000,-500.0,0.00013698,2]
[423638594,1780270243000,-500.0,0.00013698,2]
[423638556,1780270243000,-500.0,0.00013698,2]
[423638572,1780270243000,-500.0,0.00013698,2]
[423638546,1780270243000,-207.9347959,0.00013698,2]
[423638588,1780270243000,-500.0,0.00013698,2]
[423638555,1780270243000,-500.0,0.00013698,2]
[423638584,1780270243000,-500.0,0.00013698,2]
[423638529,1780270243000,-500.0,0.00013698,2]
[423638530,1780270243000,-500.0,0.00013698,2]
[423638528,1780270243000,-500.0,0.00013698,2]
[423638526,1780270243000,-500.0,0.00013698,2]
[423638527,1780270243000,-500.0,0.00013698,2]
[423638531,1780270243000,-500.0,0.00013698,2]
[423638536,1780270243000,-500.0,0.00013698,2]
[423638534,1780270243000,-500.0,0.00013698,2]
[423638533,1780270243000,-500.0,0.00013698,2]
[423638535,1780270243000,-500.0,0.00013698,2]
[423638538,1780270243000,-500.0,0.00013698,2]
[423638539,1780270243000,-500.0,0.00013698,2]
[423638537,1780270243000,-500.0,0.00013698,2]
[423638541,1780270243000,-500.0,0.00013698,2]
[423638543,1780270243000,-500.0,0.00013698,2]
[423638542,1780270243000,-500.0,0.00013698,2]
[423638532,1780270243000,-500.0,0.00013698,2]
[423638540,1780270243000,-500.0,0.00013698,2]
[423638548,1780270243000,-500.0,0.00013698,2]
[423638551,1780270243000,-500.0,0.00013698,2]
[423638549,1780270243000,-500.0,0.00013698,2]
[423638545,1780270243000,-500.0,0.00013698,2]
[423638544,1780270243000,-500.0,0.00013698,2]
[423638558,1780270243000,-500.0,0.00013698,2]
[423638557,1780270243000,-500.0,0.00013698,2]
[423638547,1780270243000,-500.0,0.00013698,2]
[423638550,1780270243000,-500.0,0.00013698,2]
[423638586,1780270243000,-500.0,0.00013698,2]
[423638620,1780270243000,-555.49,0.00013698,2]
[423638589,1780270243000,-500.0,0.00013698,2]
[423638632,1780270243000,-555.49,0.00013698,2]
[423638631,1780270243000,-500.0,0.00013698,2]
[423638622,1780270243000,-555.49,0.00013698,2]
[423638627,1780270243000,-500.0,0.00013698,2]
[423638626,1780270243000,-555.49,0.00013698,2]
[423638628,1780270243000,-555.49,0.00013698,2]
[423638633,1780270243000,-555.49,0.00013698,2]
[423638629,1780270243000,-500.0,0.00013698,2]
[423638634,1780270243000,-500.0,0.00013698,2]
[423638636,1780270243000,-500.0,0.00013698,2]
[423638637,1780270243000,-555.49,0.00013698,2]
[423638587,1780270243000,-500.0,0.00013698,2]
[423638635,1780270243000,-500.0,0.00013698,2]
[423638630,1780270243000,-555.49,0.00013698,2]
[423638644,1780270243000,-555.49,0.00013698,2]
[423638642,1780270243000,-555.49,0.00013698,2]
[423638641,1780270243000,-500.0,0.00013698,2]
[423638643,1780270243000,-500.0,0.00013698,2]
[423638645,1780270243000,-555.49,0.00013698,2]
[423638640,1780270243000,-555.49,0.00013698,2]
[423638646,1780270243000,-500.0,0.00013698,2]
[423638648,1780270243000,-500.0,0.00013698,2]
[423638649,1780270243000,-555.49,0.00013698,2]
[423638647,1780270243000,-555.49,0.00013698,2]
[423638650,1780270243000,-500.0,0.00013698,2]
[423638653,1780270243000,-555.49,0.00013698,2]
[423638651,1780270243000,-555.49,0.00013698,2]
[423638652,1780270243000,-500.0,0.00013698,2]
[423638638,1780270243000,-500.0,0.00013698,2]
[423638624,1780270243000,-555.49,0.00013698,2]
[423638639,1780270243000,-555.49,0.00013698,2]
[423638625,1780270243000,-500.0,0.00013698,2]
[423638623,1780270243000,-555.49,0.00013698,2]
[423638591,1780270243000,-521.95095535,0.00013698,2]
[423638597,1780270243000,-500.0,0.00013698,2]
[423638607,1780270243000,-500.0,0.00013698,2]
[423638608,1780270243000,-500.0,0.00013698,2]
[423638599,1780270243000,-500.0,0.00013698,2]
[423638600,1780270243000,-500.0,0.00013698,2]
[423638606,1780270243000,-500.0,0.00013698,2]
[423638598,1780270243000,-500.0,0.00013698,2]
[423638601,1780270243000,-500.0,0.00013698,2]
[423638603,1780270243000,-500.0,0.00013698,2]
[423638602,1780270243000,-500.0,0.00013698,2]
[423638596,1780270243000,-500.0,0.00013698,2]
[423638604,1780270243000,-500.0,0.00013698,2]
[423638610,1780270243000,-500.0,0.00013698,2]
[423638605,1780270243000,-500.0,0.00013698,2]
[423638618,1780270243000,-555.49,0.00013698,2]
[423638619,1780270243000,-555.49,0.00013698,2]
[423638616,1780270243000,-500.0,0.00013698,2]
[423638615,1780270243000,-500.0,0.00013698,2]
[423638614,1780270243000,-500.0,0.00013698,2]
[423638621,1780270243000,-555.49,0.00013698,2]
[423638612,1780270243000,-500.0,0.00013698,2]
[423638613,1780270243000,-500.0,0.00013698,2]
[423638611,1780270243000,-500.0,0.00013698,2]
[423638609,1780270243000,-500.0,0.00013698,2]
[423638617,1780270243000,-555.49,0.00013698,2]
[423638701,1780270244000,-500.0,0.00013698,2]
[423638698,1780270244000,-500.0,0.00013698,2]
[423638688,1780270244000,-500.0,0.00013698,2]
[423638699,1780270244000,-500.0,0.00013698,2]
[423638694,1780270244000,-500.0,0.00013698,2]
[423638696,1780270244000,-500.0,0.00013698,2]
[423638692,1780270244000,-500.0,0.00013698,2]
[423638691,1780270244000,-500.0,0.00013698,2]
[423638690,1780270244000,-500.0,0.00013698,2]
[423638689,1780270244000,-500.0,0.00013698,2]
[423638687,1780270244000,-500.0,0.00013698,2]
[423638703,1780270244000,-500.0,0.00013698,2]
[423638693,1780270244000,-174.93720831,0.00013698,2]
[423638706,1780270244000,-507.08768216,0.00013698,2]
[423638730,1780270244000,-500.0,0.00013698,2]
[423638705,1780270244000,-500.0,0.00013698,2]
[423638707,1780270244000,-171.0,0.00013698,2]
[423638716,1780270244000,-500.0,0.00013698,2]
[423638708,1780270244000,-171.0,0.00013698,2]
[423638709,1780270244000,-171.0,0.00013698,2]
[423638711,1780270244000,-174.62473346,0.00013698,2]
[423638713,1780270244000,-500.0,0.00013698,2]
[423638710,1780270244000,-171.0,0.00013698,2]
[423638712,1780270244000,-500.0,0.00013698,2]
[423638715,1780270244000,-500.0,0.00013698,2]
[423638714,1780270244000,-500.0,0.00013698,2]
[423638720,1780270244000,-500.0,0.00013698,2]
[423638684,1780270244000,-500.0,0.00013698,2]
[423638718,1780270244000,-500.0,0.00013698,2]
[423638681,1780270244000,-500.0,0.00013698,2]
[423638717,1780270244000,-500.0,0.00013698,2]
[423638683,1780270244000,-500.0,0.00013698,2]
[423638721,1780270244000,-500.0,0.00013698,2]
[423638658,1780270244000,-500.0,0.00013698,2]
[423638659,1780270244000,-500.0,0.00013698,2]
[423638661,1780270244000,-500.0,0.00013698,2]
[423638654,1780270244000,-500.0,0.00013698,2]
[423638657,1780270244000,-500.0,0.00013698,2]
[423638655,1780270244000,-555.51917216,0.00013698,2]
[423638656,1780270244000,-500.0,0.00013698,2]
[423638662,1780270244000,-500.0,0.00013698,2]
[423638666,1780270244000,-500.0,0.00013698,2]
[423638664,1780270244000,-500.0,0.00013698,2]
[423638665,1780270244000,-500.0,0.00013698,2]
[423638667,1780270244000,-500.0,0.00013698,2]
[423638682,1780270244000,-500.0,0.00013698,2]
[423638670,1780270244000,-500.0,0.00013698,2]
[423638668,1780270244000,-500.0,0.00013698,2]
[423638671,1780270244000,-500.0,0.00013698,2]
[423638673,1780270244000,-500.0,0.00013698,2]
[423638669,1780270244000,-500.0,0.00013698,2]
[423638674,1780270244000,-500.0,0.00013698,2]
[423638672,1780270244000,-500.0,0.00013698,2]
[423638686,1780270244000,-500.0,0.00013698,2]
[423638676,1780270244000,-500.0,0.00013698,2]
[423638675,1780270244000,-500.0,0.00013698,2]
[423638677,1780270244000,-500.0,0.00013698,2]
[423638678,1780270244000,-500.0,0.00013698,2]
[423638679,1780270244000,-500.0,0.00013698,2]
[423638680,1780270244000,-500.0,0.00013698,2]
[423638663,1780270244000,-500.0,0.00013698,2]
[423638719,1780270244000,-500.0,0.00013698,2]
[423638722,1780270244000,-500.0,0.00013698,2]
[423638725,1780270244000,-500.0,0.00013698,2]
[423638754,1780270244000,-151.0,0.00013699,2]
[423638763,1780270244000,-500.0,0.00013699,2]
[423638757,1780270244000,-2500.0,0.00013699,2]
[423638764,1780270244000,-500.0,0.00013699,2]
[423638762,1780270244000,-500.0,0.00013699,2]
[423638765,1780270244000,-553.55584928,0.00013699,2]
[423638761,1780270244000,-500.0,0.00013699,2]
[423638759,1780270244000,-239.79164,0.00013699,2]
[423638758,1780270244000,-166.66,0.00013699,2]
[423638767,1780270244000,-2000.0,0.00013791,2]
[423638760,1780270244000,-500.0,0.00013699,2]
[423638768,1780270244000,-166.66,0.00013836,2]
[423638766,1780270244000,-912.73,0.000137,2]
[423638752,1780270244000,-151.0,0.00013699,2]
[423638769,1780270244000,-166.66,0.00013973,2]
[423638772,1780270244000,-151.0,0.0001399,2]
[423638773,1780270244000,-250.0,0.00014,2]
[423638777,1780270244000,-3555.0,0.00014177,2]
[423638775,1780270244000,-500.0,0.00014145,2]
[423638770,1780270244000,-300.0,0.00013989,2]
[423638774,1780270244000,-166.66,0.0001411,2]
[423638780,1780270244000,-2000.0,0.00014384,7]
[423638776,1780270244000,-2000.0,0.00014145,2]
[423638781,1780270244000,-500.0,0.00014847,2]
[423638778,1780270244000,-166.66,0.00014247,2]
[423638779,1780270244000,-166.66,0.00014384,2]
[423638782,1780270244000,-500.0,0.00014847,2]
[423638783,1780270244000,-500.0,0.00014847,2]
[423638771,1780270244000,-60000.0,0.0001399,2]
[423638750,1780270244000,-151.0,0.00013699,2]
[423638784,1780270244000,-162149.0643784,0.00014848,2]
[423638751,1780270244000,-151.0,0.00013699,2]
[423638753,1780270244000,-151.0,0.00013699,2]
[423638729,1780270244000,-500.0,0.00013698,2]
[423638727,1780270244000,-500.0,0.00013698,2]
[423638724,1780270244000,-500.0,0.00013698,2]
[423638726,1780270244000,-500.0,0.00013698,2]
[423638723,1780270244000,-500.0,0.00013698,2]
[423638743,1780270244000,-151.0,0.00013699,2]
[423638732,1780270244000,-500.0,0.00013698,2]
[423638731,1780270244000,-500.0,0.00013698,2]
[423638736,1780270244000,-500.0,0.00013698,2]
[423638742,1780270244000,-200.0,0.00013699,2]
[423638733,1780270244000,-500.0,0.00013698,2]
[423638735,1780270244000,-500.0,0.00013698,2]
[423638738,1780270244000,-500.0,0.00013698,2]
[423638728,1780270244000,-500.0,0.00013698,2]
[423638737,1780270244000,-500.0,0.00013698,2]
[423638748,1780270244000,-151.0,0.00013699,2]
[423638785,1780270244000,-1151874.1839182,0.00014848,2]
[423638746,1780270244000,-151.0,0.00013699,2]
[423638749,1780270244000,-151.0,0.00013699,2]
[423638747,1780270244000,-151.0,0.00013699,2]
[423638756,1780270244000,-727.79,0.00013699,2]
[423638755,1780270244000,-162.917968,0.00013699,2]
[423638745,1780270244000,-151.0,0.00013699,2]
[423638741,1780270244000,-524.73,0.00013698,2]
[423638740,1780270244000,-500.0,0.00013698,2]
[423638739,1780270244000,-500.0,0.00013698,2]
[423638734,1780270244000,-500.0,0.00013698,2]
[423638744,1780270244000,-151.0,0.00013699,2]
[423638812,1780270245000,-151.0,0.00015,2]
[423638804,1780270245000,-151.0,0.00014848,2]
[423638816,1780270245000,-701.34009974,0.00015,14]
[423638817,1780270245000,-8094.61800012,0.00015,2]
[423638799,1780270245000,-1852.621912,0.00014848,2]
[423638797,1780270245000,-1852.621902,0.00014848,2]
[423638796,1780270245000,-1852.621902,0.00014848,2]
[423638798,1780270245000,-1852.621902,0.00014848,2]
[423638803,1780270245000,-151.0,0.00014848,2]
[423638801,1780270245000,-200.162005,0.00014848,2]
[423638789,1780270245000,-151.0,0.00014848,2]
[423638800,1780270245000,-151.0,0.00014848,2]
[423638795,1780270245000,-1852.621902,0.00014848,2]
[423638794,1780270245000,-1852.621902,0.00014848,2]
[423638791,1780270245000,-173.417716,0.00014848,2]
[423638788,1780270245000,-151.0,0.00014848,2]
[423638786,1780270245000,-22687.5828078,0.00014848,2]
[423638790,1780270245000,-151.0,0.00014848,2]
[423638787,1780270245000,-151.0,0.00014848,2]
[423638793,1780270245000,-1852.621902,0.00014848,2]
[423638792,1780270245000,-1852.621902,0.00014848,2]
[423638810,1780270245000,-525.05921768,0.00015,2]
[423638802,1780270245000,-151.0,0.00014848,2]
[423638815,1780270245000,-2079.52275691,0.00015,2]
[423638818,1780270245000,-4159203.70788159,0.00015,2]
[423638806,1780270245000,-175.73681,0.00014848,2]
[423638833,1780270245000,-965.57074092,0.00015,2]
[423638831,1780270245000,-264.3568826,0.00012913,2]
[423638830,1780270245000,-211.36316007,0.000124,2]
[423638832,1780270245000,-10065.23795734,0.00015,2]
[423638805,1780270245000,-151.0,0.00014848,2]
[423638828,1780270245000,-500.0,0.00012639,2]
[423638826,1780270245000,-500.0,0.00012091,2]
[423638827,1780270245000,-500.0,0.00012365,2]
[423638824,1780270245000,-500.0,0.00011543,2]
[423638823,1780270245000,-500.0,0.00011269,2]
[423638829,1780270245000,-71612.46167805,0.00015,2]
[423638822,1780270245000,-500.0,0.00010995,2]
[423638825,1780270245000,-500.0,0.00011817,2]
[423638809,1780270245000,-300.0,0.00014999,2]
[423638813,1780270245000,-151.0,0.00015,2]
[423638814,1780270245000,-151.0,0.00015,2]
[423638807,1780270245000,-10679.24065909,0.000149,2]
[423638834,1780270245000,-348.14552046,0.00015,2]
[423638811,1780270245000,-3636973.78977964,0.00015,2]
[423638819,1780270245000,-500.0,0.00010721,2]
[423638820,1780270245000,-11085.99999999,0.000109,2]
[423638808,1780270245000,-4059.73228648,0.000149,2]
[423638821,1780270245000,-3224.00503204,0.000109,2]
[423638835,1780270246000,-6452.23650284,0.000109,2]
[423638838,1780270641000,1000.0,6.958e-05,2]
[423638848,1780270666000,4621.24333693,6.958e-05,2]
[423638847,1780270666000,4621.24333693,6.958e-05,2]
[423638846,1780270666000,3621.24333693,6.958e-05,2]
[423638844,1780270666000,500.0,6.958e-05,2]
[423638843,1780270666000,500.0,6.958e-05,2]
[423638842,1780270666000,500.0,6.958e-05,2]
[423638841,1780270666000,200.0,6.958e-05,2]
[423638845,1780270666000,500.0,6.958e-05,2]
[423638849,1780270667000,2195.40998921,6.958e-05,2]
[423638850,1780270763000,1105.95,6.936e-05,2]
[423638851,1780270835000,500.0,6.91e-05,2]
[423638852,1780270863000,200.0,6.912e-05,2]
[423638853,1780270867000,601.14,6.912e-05,2]
[423638854,1780270913000,150.0,0.00030136,120]
[423638855,1780270932000,18.74334772,6.904e-05,2]
[423638856,1780270932000,844.83665228,6.904e-05,2]
[423638857,1780270947000,500.0,6.904e-05,2]
[423638858,1780271072000,177.41,5.516e-05,2]
[423638860,1780271132000,996.44331535,6.873e-05,2]
[423638859,1780271132000,3098.99668465,6.873e-05,2]
[423638861,1780271137000,1464.5,6.873e-05,2]
[423638862,1780271188000,499.99,0.00030137,120]
[423638863,1780271209000,500.0,6.842e-05,3]
[423638864,1780271216000,-161.09833868,7.551e-05,2]
[423638865,1780271220000,192.0,6.842e-05,2]
[423638866,1780271244000,298.17,6.842e-05,2]
[423638868,1780271324000,35400.0,9e-05,3]
[423638870,1780271340000,2000.0,0.00030136,120]
[423638869,1780271340000,209.56,6.831e-05,2]
[423638871,1780271364000,-168.01482058,7.551e-05,2]
[423638872,1780271367000,173.94,6.478e-05,2]
[423638896,1780271431000,-5949.44716374,7.702e-05,2]
[423638898,1780271431000,-7063.33,7.702e-05,2]
[423638894,1780271431000,-366.74,7.702e-05,2]
[423638895,1780271431000,-9999.99,7.702e-05,2]
[423638892,1780271431000,-150.99,7.702e-05,2]
[423638893,1780271431000,-1010.11,7.702e-05,2]
[423638891,1780271431000,-999.99,7.702e-05,2]
[423638889,1780271431000,-1741.43,7.702e-05,2]
[423638888,1780271431000,-13406.02,7.702e-05,2]
[423638887,1780271431000,-2838.9,7.702e-05,2]
[423638890,1780271431000,-299.99,7.702e-05,2]
[423638877,1780271431000,-251.40344074,7.609e-05,2]
[423638885,1780271431000,-192.0,7.697e-05,2]
[423638883,1780271431000,-150.0,7.643e-05,2]
[423638882,1780271431000,-2430.89,7.619e-05,2]
[423638881,1780271431000,-4361.9499,7.61e-05,2]
[423638880,1780271431000,-4176.1831,7.61e-05,2]
[423638874,1780271431000,-98.23344074,7.551e-05,2]
[423638876,1780271431000,-48.59655926,7.609e-05,2]
[423638897,1780271431000,-19050.54283626,7.702e-05,2]
[423638878,1780271431000,-1200.0,7.609e-05,2]
[423638879,1780271431000,-300.0,7.609e-05,2]
[423638875,1780271431000,-1200.0,7.609e-05,2]
[423638886,1780271431000,-7000.0,7.7e-05,2]
[423638900,1780271431000,-8340.76978403,7.702e-05,2]
[423638884,1780271431000,-2430.89,7.661e-05,2]
[423638899,1780271431000,-2833.58,7.702e-05,2]
[423638901,1780271431000,-114883.42021597,7.702e-05,2]
[423638923,1780271431000,-188.43377958,7.902e-05,2]
[423638924,1780271431000,-123306.05477356,7.903e-05,2]
[423638922,1780271431000,-37309.82139654,7.901e-05,2]
[423638920,1780271431000,-2430.89,7.872e-05,2]
[423638925,1780271431000,-382830.496,7.903e-05,2]
[423638918,1780271431000,-2430.89,7.83e-05,2]
[423638921,1780271431000,-21200.0,7.9e-05,2]
[423638926,1780271431000,-34759.32231078,7.903e-05,2]
[423638917,1780271431000,-1748.47756391,7.803e-05,2]
[423638914,1780271431000,-2430.89,7.788e-05,2]
[423638912,1780271431000,-150.0,7.783e-05,2]
[423638919,1780271431000,-259.0,7.87e-05,2]
[423638915,1780271431000,-150.0,7.794e-05,2]
[423638902,1780271431000,-9999.99,7.702e-05,2]
[423638903,1780271431000,-2868.32,7.702e-05,2]
[423638910,1780271431000,-150.0,7.718e-05,2]